bitfinex/quotes_BTCUSD_20220120
["timestamp","ask_amount","ask_price","bid_price","bid_amount"]
[1642672327319,0.00074994,42078.0,42077.0,0.61066819]
[1642672327721,0.00074994,42078.0,42077.0,0.87947589]
[1642672327919,6.876e-05,42078.0,42077.0,0.87947589]
[1642672328124,6.876e-05,42078.0,42077.0,0.61066819]
[1642672328321,0.00099618,42080.0,42079.0,0.383694]
[1642672328322,1.494e-05,42080.0,42079.0,0.383694]
[1642672328524,0.002,42086.0,42079.0,0.67626344]
[1642672328722,0.0041,42091.0,42088.0,0.00124773]
[1642672328925,0.0041,42091.0,42090.0,0.383694]
[1642672329324,0.1221,42099.0,42091.0,0.85]
[1642672329522,0.1221,42099.0,42091.0,1.233694]
[1642672329761,0.0221,42099.0,42094.0,0.383694]
[1642672330161,0.00316876,42095.0,42094.0,0.383694]
[1642672330859,0.00316876,42095.0,42094.0,0.395694]
[1642672331460,0.00316876,42095.0,42094.0,0.39588291]
[1642672332062,0.00316876,42095.0,42094.0,0.38388291]
[1642672332862,0.00316876,42095.0,42094.0,0.39688291]
[1642672334010,0.00316876,42095.0,42094.0,0.01318891]
[1642672334214,0.00316876,42095.0,42094.0,0.38388291]
[1642672334412,0.00316876,42095.0,42094.0,0.00018891]
[1642672334613,0.00316876,42095.0,42094.0,0.38388291]
[1642672334912,0.00316876,42095.0,42094.0,0.39888291]
[1642672335112,0.00316876,42095.0,42094.0,0.39994204]
[1642672335311,0.00316876,42095.0,42094.0,0.01624804]
[1642672336112,0.00316876,42095.0,42094.0,0.00124804]
[1642672336812,0.00716876,42095.0,42094.0,0.02124804]
[1642672338073,0.38535251,42095.0,42094.0,0.00124804]
[1642672338472,0.48535251,42095.0,42094.0,0.00124804]
[1642672338872,0.50235251,42095.0,42094.0,0.00124804]
[1642672339075,0.85,42094.0,42093.0,0.00094908]
[1642672339274,0.059438,42084.0,42078.0,0.29709733]
[1642672339473,0.059438,42084.0,42079.0,0.383694]
[1642672339673,0.059438,42084.0,42079.0,0.38390028]
[1642672340074,0.06042521,42084.0,42079.0,0.38390028]
[1642672340273,0.00098721,42084.0,42079.0,0.38390028]
[1642672340881,0.00098721,42084.0,42079.0,0.67740208]
[1642672341119,0.159433,42087.0,42079.0,0.67740208]
[1642672341320,0.00098721,42084.0,42079.0,0.67740208]
[1642672341520,0.00098721,42084.0,42081.0,0.0002156]
[1642672341721,0.00098721,42084.0,42082.0,0.383694]
[1642672341920,0.00098721,42084.0,42082.0,0.38384871]
[1642672342120,0.00098721,42084.0,42083.0,0.00013752]
[1642672342321,0.159433,42087.0,42083.0,0.00013752]
[1642672342522,0.00098723,42085.0,42083.0,0.00013752]
[1642672342721,0.00098723,42085.0,42082.0,0.00015471]
[1642672342921,0.00098723,42085.0,42083.0,0.42817874]
[1642672343122,0.00098723,42085.0,42084.0,0.04483099]
[1642672343321,0.00098723,42085.0,42084.0,0.04495132]
[1642672343527,0.104,42087.0,42084.0,0.04495132]
[1642672343724,0.10498725,42087.0,42084.0,0.04495132]
[1642672344022,0.00498725,42087.0,42085.0,0.00010314]
[1642672344225,0.00098725,42087.0,42085.0,0.00010314]
[1642672344623,1.72063881,42081.0,42080.0,0.19415144]
[1642672344866,1.72063881,42081.0,42080.0,0.18872245]
[1642672345061,1.72063881,42081.0,42080.0,0.1888084]
[1642672346262,1.72063881,42081.0,42080.0,0.2388084]
[1642672347663,1.72063881,42081.0,42080.0,0.05008595]
[1642672347862,1.72063881,42081.0,42080.0,0.23135842]
[1642672348063,1.72063881,42081.0,42080.0,0.05008595]
[1642672348515,1.72063881,42081.0,42080.0,0.2312327]
[1642672350621,1.72063881,42081.0,42080.0,8.595e-05]
[1642672351022,1.72063881,42081.0,42075.0,0.0001719]
[1642672351422,1.72063881,42081.0,42078.0,0.00120766]
[1642672351820,1.72063881,42081.0,42079.0,0.00010314]
[1642672353070,1.72063881,42081.0,42079.0,0.05952714]
[1642672353471,1.72063881,42081.0,42079.0,0.2496337]
[1642672353876,1.72063881,42081.0,42080.0,0.24622702]
[1642672354070,1.72063881,42081.0,42080.0,0.48622702]
[1642672354270,1.72063881,42081.0,42080.0,0.53622702]
[1642672357528,1.72063881,42081.0,42080.0,0.29]
[1642672358327,1.72063881,42081.0,42080.0,0.24]
[1642672358529,2.07801161,42081.0,42080.0,0.24]
[1642672358927,2.08301161,42081.0,42080.0,0.24]
[1642672360167,2.07801161,42081.0,42080.0,0.24]
[1642672360872,2.08301161,42081.0,42080.0,0.24]
[1642672362268,2.07801161,42081.0,42080.0,0.24]
[1642672362970,2.08101161,42081.0,42080.0,0.24]
[1642672364124,2.07801161,42081.0,42080.0,0.24]
[1642672365021,2.08101161,42081.0,42080.0,0.24]
[1642672366723,2.07801161,42081.0,42080.0,0.24]
[1642672366927,2.08201161,42081.0,42080.0,0.24]
[1642672367126,2.08201161,42081.0,42080.0,0.29]
[1642672367371,1.72463881,42081.0,42080.0,0.29]
[1642672368770,1.72063881,42081.0,42080.0,0.29]
[1642672368970,1.72163881,42081.0,42080.0,0.29]
[1642672369575,1.72163881,42081.0,42080.0,0.525341]
[1642672370170,1.72063881,42081.0,42080.0,0.525341]
[1642672370773,1.72063881,42081.0,42080.0,0.29]
[1642672371023,1.72263881,42081.0,42080.0,0.29]
[1642672371226,1.72263881,42081.0,42080.0,0.52221296]
[1642672372023,1.72263881,42081.0,42080.0,0.47221296]
[1642672372228,1.72063881,42081.0,42080.0,0.24]
[1642672372425,1.72063881,42081.0,42080.0,0.47251723]
[1642672372724,1.72063881,42081.0,42080.0,0.52346474]
[1642672372924,1.72263881,42081.0,42080.0,0.52346474]
[1642672373125,1.72263881,42081.0,42080.0,0.29]
[1642672373726,1.72263881,42081.0,42080.0,0.52418396]
[1642672374326,1.72063881,42081.0,42080.0,0.52418396]
[1642672376876,1.72063881,42081.0,42080.0,0.29]
[1642672377478,1.72063881,42081.0,42080.0,0.24]
[1642672377879,1.72063881,42081.0,42080.0,0.29]
[1642672378915,1.72063881,42081.0,42080.0,0.34]
[1642672381620,1.72063881,42081.0,42080.0,0.34040583]
[1642672382677,1.72063881,42081.0,42080.0,0.29040583]
[1642672384478,1.72063881,42081.0,42080.0,0.24040583]
[1642672385077,1.72163881,42081.0,42080.0,0.24040583]
[1642672385680,1.72163881,42081.0,42080.0,0.29040583]
[1642672386321,1.72063881,42081.0,42080.0,0.29040583]
[1642672386922,1.72063881,42081.0,42080.0,0.24040583]
[1642672387124,1.72163881,42081.0,42080.0,0.29040583]
[1642672388323,1.72063881,42081.0,42080.0,0.29040583]
[1642672389223,1.72363881,42081.0,42080.0,0.29040583]
[1642672389770,1.72363881,42081.0,42080.0,0.24040583]
[1642672390370,1.72063881,42081.0,42080.0,0.29040583]
[1642672391174,1.72663881,42081.0,42080.0,0.29040583]
[1642672392374,1.72063881,42081.0,42080.0,0.29040583]
[1642672392974,1.72863881,42081.0,42080.0,0.29040583]
[1642672394419,1.72063881,42081.0,42080.0,0.29040583]
[1642672395020,1.72863881,42081.0,42080.0,0.29040583]
[1642672396022,1.72863881,42081.0,42080.0,0.52315754]
[1642672396222,1.72063881,42081.0,42080.0,0.52968058]
[1642672397021,1.72863881,42081.0,42080.0,0.52968058]
[1642672397470,1.72863881,42081.0,42080.0,0.29040583]
[1642672398070,1.72863881,42081.0,42080.0,0.52393665]
[1642672398270,1.72063881,42081.0,42080.0,0.29040583]
[1642672399771,1.72063881,42081.0,42080.0,0.5237341]
[1642672400071,1.72063881,42081.0,42080.0,0.29040583]
[1642672405473,1.72063881,42081.0,42080.0,0.24040583]
[1642672406676,1.72063881,42081.0,42080.0,0.29040583]
[1642672408639,1.72063881,42081.0,42080.0,0.24040583]
[1642672409045,1.72463881,42081.0,42080.0,0.24040583]
[1642672409739,1.72463881,42081.0,42080.0,0.23997594]
[1642672410241,1.72063881,42081.0,42080.0,0.23997594]
[1642672411043,1.72663881,42081.0,42080.0,0.23997594]
[1642672412044,2.08561255,42081.0,42080.0,0.23997594]
[1642672412271,2.13351255,42081.0,42080.0,0.23997594]
[1642672412477,2.20129366,42081.0,42080.0,0.23997594]
[1642672413069,2.21929366,42081.0,42080.0,0.23997594]
[1642672413269,2.14551255,42081.0,42080.0,0.23997594]
[1642672413673,2.32055851,42081.0,42080.0,0.23997594]
[1642672414470,2.30255851,42081.0,42080.0,0.23997594]
[1642672414870,2.04358477,42081.0,42080.0,0.23997594]
[1642672415270,2.11502877,42081.0,42080.0,0.23997594]
[1642672416117,2.0412467,42081.0,42080.0,0.23997594]
[1642672416317,2.10282381,42081.0,42080.0,0.23997594]
[1642672417121,2.11382381,42081.0,42080.0,0.23997594]
[1642672417520,2.0402467,42081.0,42080.0,0.23997594]
[1642672418122,2.03898281,42081.0,42080.0,0.23997594]
[1642672418321,1.96853881,42081.0,42080.0,0.23997594]
[1642672418520,1.86853881,42081.0,42080.0,0.23997594]
[1642672419121,1.88953881,42081.0,42080.0,0.23997594]
[1642672419527,1.84163881,42081.0,42080.0,0.23997594]
[1642672420374,1.72063881,42081.0,42080.0,0.23997594]
[1642672421177,1.73963881,42081.0,42080.0,0.23997594]
[1642672422375,1.72063881,42081.0,42080.0,0.23997594]
[1642672423177,1.73663881,42081.0,42080.0,0.23997594]
[1642672424424,1.72063881,42081.0,42080.0,0.23997594]
[1642672425224,1.73663881,42081.0,42080.0,0.23997594]
[1642672425425,1.73600568,42081.0,42080.0,0.23997594]
[1642672426423,1.72000568,42081.0,42080.0,0.23997594]
[1642672427272,1.74000568,42081.0,42080.0,0.23997594]
[1642672427481,1.84000568,42081.0,42080.0,0.23997594]
[1642672428078,1.98914991,42081.0,42080.0,0.23997594]
[1642672428276,2.06136222,42081.0,42080.0,0.23997594]
[1642672428476,2.04136222,42081.0,42080.0,0.23997594]
[1642672429376,2.05336222,42081.0,42080.0,0.23997594]
[1642672430375,2.04136222,42081.0,42080.0,0.23997594]
[1642672431142,2.05336222,42081.0,42080.0,0.23997594]
[1642672431842,2.10336222,42081.0,42080.0,0.23997594]
[1642672432242,2.11524222,42081.0,42080.0,0.23997594]
[1642672432548,2.09136222,42081.0,42080.0,0.23997594]
[1642672433243,2.10336222,42081.0,42080.0,0.23997594]
[1642672434447,2.10324222,42081.0,42080.0,0.23997594]
[1642672434645,2.05324222,42081.0,42080.0,0.23997594]
[1642672435276,2.06424222,42081.0,42080.0,0.23997594]
[1642672435476,2.11424222,42081.0,42080.0,0.23997594]
[1642672436477,2.10324222,42081.0,42080.0,0.23997594]
[1642672436878,2.05324222,42081.0,42080.0,0.23997594]
[1642672437277,2.06424222,42081.0,42080.0,0.00021129]
[1642672437478,2.06424222,42081.0,42079.0,0.42010314]
[1642672437479,0.85,42080.0,42079.0,0.18440208]
[1642672437680,0.9979,42080.0,42079.0,0.18440208]
[1642672437879,1.07011231,42080.0,42079.0,0.18440208]
[1642672438078,1.17011231,42080.0,42079.0,0.18440208]
[1642672438278,1.07011231,42080.0,42079.0,0.18440208]
[1642672438530,1.08199231,42080.0,42079.0,0.18440208]
[1642672438730,1.18199231,42080.0,42079.0,0.18440208]
[1642672438930,0.33199231,42080.0,42079.0,0.18440208]
[1642672439129,0.23199231,42080.0,42079.0,0.18440208]
[1642672439329,0.34199231,42080.0,42079.0,0.18440208]
[1642672440529,0.33199231,42080.0,42079.0,0.18440208]
[1642672440931,0.32011231,42080.0,42079.0,0.42440208]
[1642672441131,0.2479,42080.0,42079.0,0.42440208]
[1642672441332,0.27078,42080.0,42079.0,0.42440208]
[1642672441532,0.34153891,42080.0,42079.0,0.42461493]
[1642672441834,0.24153891,42080.0,42079.0,0.42461493]
[1642672442033,0.34153891,42080.0,42079.0,0.42461493]
[1642672442486,0.33053891,42080.0,42079.0,0.42461493]
[1642672443289,0.34253891,42080.0,42079.0,0.42461493]
[1642672444288,0.24253891,42080.0,42079.0,0.42461493]
[1642672444490,0.23053891,42080.0,42079.0,0.42461493]
[1642672445291,0.24253891,42080.0,42079.0,0.42461493]
[1642672446526,0.29295518,42080.0,42079.0,0.42461493]
[1642672447221,0.30495518,42080.0,42079.0,0.42461493]
[1642672447622,0.40495518,42080.0,42079.0,0.42461493]
[1642672448325,1.00495518,42080.0,42079.0,0.41961493]
[1642672448523,0.34295518,42080.0,42079.0,0.41961493]
[1642672448726,0.27219627,42080.0,42079.0,0.41961493]
[1642672448927,0.15978,42080.0,42079.0,0.41961493]
[1642672449325,0.17378,42080.0,42079.0,0.41961493]
[1642672450281,0.12588,42080.0,42079.0,0.41961493]
[1642672450482,0.1,42080.0,42079.0,0.41961493]
[1642672451178,0.118,42080.0,42079.0,0.41961493]
[1642672452579,0.1,42080.0,42079.0,0.41961493]
[1642672453285,0.122,42080.0,42079.0,0.41961493]
[1642672454448,0.1,42080.0,42079.0,0.41961493]
[1642672455346,0.119,42080.0,42079.0,0.41961493]
[1642672456547,0.1,42080.0,42079.0,0.41961493]
[1642672457274,0.121,42080.0,42079.0,0.41961493]
[1642672458580,0.1,42080.0,42079.0,0.41961493]
[1642672459376,0.12988,42080.0,42079.0,0.41961493]
[1642672459677,0.118,42080.0,42079.0,0.41961493]
[1642672460276,0.1659,42080.0,42079.0,0.41961493]
[1642672460477,0.1479,42080.0,42079.0,0.41961493]
[1642672460776,0.21823178,42080.0,42079.0,0.41961493]
[1642672461233,0.22923178,42080.0,42079.0,0.41961493]
[1642672461429,0.17078,42080.0,42079.0,0.41961493]
[1642672462030,0.241122,42080.0,42079.0,0.41961493]
[1642672462230,0.17078,42080.0,42079.0,0.41961493]
[1642672462435,0.24112066,42080.0,42079.0,0.41961493]
[1642672463032,0.23012066,42080.0,42079.0,0.41961493]
[1642672463232,0.24112066,42080.0,42079.0,0.41961493]
[1642672463837,0.17078,42080.0,42079.0,0.41961493]
[1642672464034,0.24112609,42080.0,42079.0,0.41961493]
[1642672464433,0.23012609,42080.0,42079.0,0.41961493]
[1642672464886,0.15978,42080.0,42079.0,0.41961493]
[1642672465286,0.17078,42080.0,42079.0,0.41961493]
[1642672466686,0.15978,42080.0,42079.0,0.41961493]
[1642672467287,0.17078,42080.0,42079.0,0.41961493]
[1642672468091,0.12288,42080.0,42079.0,0.41961493]
[1642672468290,0.111,42080.0,42079.0,0.41961493]
[1642672468530,0.1,42080.0,42079.0,0.41961493]
[1642672469329,0.113,42080.0,42079.0,0.41961493]
[1642672470631,0.1,42080.0,42079.0,0.41961493]
[1642672471229,0.113,42080.0,42079.0,0.41961493]
[1642672472478,0.1,42080.0,42079.0,0.41961493]
[1642672473378,0.118,42080.0,42079.0,0.41961493]
[1642672474484,0.1,42080.0,42079.0,0.41961493]
[1642672475281,0.111,42080.0,42079.0,0.41961493]
[1642672475483,0.12288,42080.0,42079.0,0.41961493]
[1642672476529,0.1,42080.0,42079.0,0.41961493]
[1642672477232,0.111,42080.0,42079.0,0.41961493]
[1642672478631,0.1,42080.0,42079.0,0.41961493]
[1642672479432,0.111,42080.0,42079.0,0.41961493]
[1642672481283,0.15865398,42080.0,42079.0,0.41961493]
[1642672482584,0.14665398,42080.0,42079.0,0.41961493]
[1642672483388,0.15865398,42080.0,42079.0,0.41961493]
[1642672483630,0.23394216,42080.0,42079.0,0.41961493]
[1642672483830,0.15865398,42080.0,42079.0,0.41961493]
[1642672484633,0.22196313,42080.0,42079.0,0.41961493]
[1642672485134,0.14665398,42080.0,42079.0,0.41961493]
[1642672485333,0.15865398,42080.0,42079.0,0.41961493]
[1642672485533,0.23396716,42080.0,42079.0,0.41961493]
[1642672486133,0.20655398,42080.0,42079.0,0.41961493]
[1642672486533,0.19455398,42080.0,42079.0,0.41961493]
[1642672487394,0.29276785,42080.0,42079.0,0.41961493]
[1642672488190,0.21743398,42080.0,42079.0,0.41961493]
[1642672488690,0.20643398,42080.0,42079.0,0.41961493]
[1642672489291,0.29579782,42080.0,42079.0,0.41961493]
[1642672491230,0.28179782,42080.0,42079.0,0.41961493]
[1642672491434,0.29579782,42080.0,42079.0,0.41961493]
[1642672492630,0.28179782,42080.0,42079.0,0.41961493]
[1642672493435,0.29179782,42080.0,42079.0,0.41961493]
[1642672494535,0.28179782,42080.0,42079.0,0.41961493]
[1642672495385,0.29179782,42080.0,42079.0,0.41961493]
[1642672496585,0.28179782,42080.0,42079.0,0.41961493]
[1642672497387,0.29179782,42080.0,42079.0,0.24031599]
[1642672497593,0.29179782,42080.0,42079.0,0.66031599]
[1642672498835,0.28179782,42080.0,42079.0,0.66031599]
[1642672499335,0.29279782,42080.0,42079.0,0.66031599]
[1642672499735,0.29279782,42080.0,42079.0,1.08031599]
[1642672500143,0.28091782,42080.0,42079.0,1.08031599]
[1642672500337,0.20555398,42080.0,42079.0,1.08031599]
[1642672500738,0.28211369,42080.0,42079.0,1.08031599]
[1642672501236,0.27111369,42080.0,42079.0,1.08031599]
[1642672501539,0.28211369,42080.0,42079.0,1.08031599]
[1642672502586,0.22321369,42080.0,42079.0,1.08031599]
[1642672503383,0.23621369,42080.0,42079.0,1.03970196]
[1642672503782,0.15965398,42080.0,42079.0,1.03970196]
[1642672504385,0.2361581,42080.0,42079.0,1.03970196]
[1642672504784,0.2231581,42080.0,42079.0,1.03970196]
[1642672505392,0.14665398,42080.0,42079.0,1.03970196]
[1642672505584,0.15965398,42080.0,42079.0,1.03970196]
[1642672506836,0.22316426,42080.0,42079.0,1.03970196]
[1642672507438,0.23616426,42080.0,42079.0,1.03970196]
[1642672508637,0.22316426,42080.0,42079.0,1.03970196]
[1642672509538,0.23716426,42080.0,42079.0,1.03970196]
[1642672510784,0.14665398,42080.0,42079.0,1.03970196]
[1642672511086,0.14665398,42080.0,42079.0,1.27924711]
[1642672511283,0.1,42080.0,42079.0,1.27555232]
[1642672511482,0.138,42080.0,42079.0,1.27555232]
[1642672511883,0.038,42080.0,42079.0,1.27555232]
[1642672512082,0.038,42080.0,42079.0,1.27155791]
[1642672512282,0.038,42080.0,42079.0,1.27290978]
[1642672512482,0.038,42080.0,42079.0,1.03970196]
[1642672512681,0.038,42080.0,42079.0,1.27310674]
[1642672512885,1.72000568,42081.0,42079.0,1.27310674]
[1642672513083,1.72000568,42081.0,42079.0,1.03970196]
[1642672513288,1.82000568,42081.0,42079.0,1.03970196]
[1642672513529,1.82100568,42081.0,42079.0,1.03970196]
[1642672514728,1.82000568,42081.0,42079.0,1.03970196]
[1642672515529,1.82800568,42081.0,42079.0,1.03970196]
[1642672516730,1.82000568,42081.0,42079.0,1.03970196]
[1642672517579,1.83400568,42081.0,42079.0,1.03970196]
[1642672518381,1.95290368,42081.0,42079.0,1.03970196]
[1642672518586,0.0480222,42080.0,42079.0,1.03970196]
[1642672519081,0.1480222,42080.0,42079.0,1.03970196]
[1642672519482,0.112,42080.0,42079.0,1.03970196]
[1642672519684,0.1599,42080.0,42079.0,1.03970196]
[1642672519882,0.1599,42080.0,42079.0,0.42031599]
[1642672520084,0.059459,42077.0,42071.0,0.26570608]
[1642672520283,0.0479,42076.0,42069.0,0.00112645]
[1642672520483,0.0479,42076.0,42072.0,0.00012033]
[1642672520886,0.3253578,42073.0,42072.0,0.00012033]
[1642672521135,0.67907985,42073.0,42072.0,0.00012033]
[1642672521335,0.059456,42073.0,42072.0,0.00012033]
[1642672521534,0.059456,42073.0,42069.0,0.00112639]
[1642672521535,0.007,42073.0,42069.0,0.00652355]
[1642672521731,0.007,42073.0,42070.0,0.00015471]
[1642672522331,0.27580204,42072.0,42070.0,0.00015471]
[1642672522731,0.27580204,42072.0,42069.0,0.24112636]
[1642672522932,0.27580204,42072.0,42070.0,0.27102789]
[1642672523332,0.27580204,42072.0,42071.0,0.00013752]
[1642672524984,1.82128569,42081.0,42071.0,0.006962]
[1642672525185,1.82128569,42081.0,42072.0,0.00722745]
[1642672525387,1.92128569,42081.0,42071.0,0.00676773]
[1642672525590,1.92000568,42081.0,42073.0,0.00010314]
[1642672525787,1.97000568,42081.0,42073.0,0.00010314]
[1642672526088,0.24433261,42075.0,42073.0,0.00010314]
[1642672526490,0.24433261,42075.0,42073.0,0.00029515]
[1642672526691,0.24433261,42075.0,42073.0,0.00019201]
[1642672526892,0.24433261,42075.0,42074.0,8.595e-05]
[1642672527592,0.24833261,42075.0,42074.0,8.595e-05]
[1642672528840,0.24433261,42075.0,42074.0,8.595e-05]
[1642672529434,0.24633261,42075.0,42074.0,8.595e-05]
[1642672529634,0.002,42075.0,42074.0,8.595e-05]
[1642672530633,0.002,42075.0,42074.0,0.37041208]
[1642672530838,1.72000568,42081.0,42074.0,1.0313533]
[1642672531036,1.72000568,42081.0,42074.0,0.64738309]
[1642672531340,1.72000568,42081.0,42075.0,0.00571296]
[1642672531534,1.72000568,42081.0,42076.0,0.00572415]
[1642672531735,1.72000568,42081.0,42078.0,0.00127369]
[1642672532136,1.72000568,42081.0,42075.0,0.00522018]
[1642672532381,1.72000568,42081.0,42076.0,0.00695944]
[1642672532581,1.72000568,42081.0,42075.0,0.00596205]
[1642672532785,1.77944868,42081.0,42076.0,0.00601522]
[1642672533182,1.72000568,42081.0,42076.0,0.00741879]
[1642672533382,1.72000568,42081.0,42075.0,6.876e-05]
[1642672533582,1.72000568,42081.0,42076.0,0.085]
[1642672533781,1.72000568,42081.0,42077.0,0.24149887]
[1642672534404,1.72000568,42081.0,42076.0,0.09001385]
[1642672534783,1.72000568,42081.0,42077.0,0.23126156]
[1642672535583,1.72000568,42081.0,42077.0,0.29726156]
[1642672536338,1.72000568,42081.0,42079.0,0.00019085]
[1642672537639,1.72200568,42081.0,42079.0,0.04019085]
[1642672538843,1.72000568,42081.0,42079.0,0.00019085]
[1642672539545,1.72100568,42081.0,42079.0,0.05719085]
[1642672540784,1.72000568,42081.0,42079.0,0.00019085]
[1642672541589,1.72100568,42081.0,42079.0,0.057]
[1642672542585,1.72100568,42081.0,42079.0,0.297]
[1642672542788,1.72000568,42081.0,42079.0,0.24]
[1642672543532,1.72200568,42081.0,42079.0,0.293]
[1642672544333,1.78144968,42081.0,42079.0,0.293]
[1642672544733,1.77944968,42081.0,42079.0,0.24]
[1642672545533,1.78144968,42081.0,42079.0,0.294]
[1642672546236,1.72200568,42081.0,42079.0,0.294]
[1642672546534,1.72200568,42081.0,42080.0,0.00019066]
[1642672546933,1.72000568,42081.0,42080.0,0.00019066]
[1642672547623,1.72200568,42081.0,42080.0,0.02919066]
[1642672548825,1.72000568,42081.0,42080.0,0.00019066]
[1642672549726,1.72200568,42081.0,42080.0,0.02919066]
[1642672550325,1.72200568,42081.0,42080.0,0.25998377]
[1642672550827,1.72000568,42081.0,42080.0,0.00019066]
[1642672551637,1.72000568,42081.0,42080.0,0.814]
[1642672551836,1.72000568,42081.0,42080.0,1.0847208]
[1642672552041,1.72000568,42081.0,42080.0,0.6684148]
[1642672552237,1.72000568,42081.0,42080.0,0.2847208]
[1642672552839,1.72000568,42081.0,42080.0,0.2707208]
[1642672553641,1.72000568,42081.0,42080.0,0.3027208]
[1642672554646,1.72000568,42081.0,42080.0,0.6864148]
[1642672554888,1.72000568,42081.0,42080.0,0.6544148]
[1642672555490,1.62000568,42081.0,42080.0,0.6544148]
[1642672555692,1.62000568,42081.0,42080.0,0.6934148]
[1642672556493,1.62000568,42081.0,42080.0,0.69360546]
[1642672556795,1.62000568,42081.0,42080.0,0.65460546]
[1642672557200,1.62000568,42081.0,42080.0,0.65587917]
[1642672557596,1.62000568,42081.0,42080.0,0.69687917]
[1642672557998,0.1104572,42081.0,42080.0,1.60881917]
[1642672558201,0.0604572,42081.0,42080.0,2.48360197]
[1642672558400,7.2e-06,42081.0,42080.0,2.22833422]
[1642672558639,0.00303023,42094.0,42086.0,0.00128785]
[1642672558838,0.00303023,42094.0,42089.0,0.383694]
[1642672559040,0.00303023,42094.0,42089.0,0.633694]
[1642672559238,0.00303023,42094.0,42089.0,0.383694]
[1642672559641,0.062122,42100.0,42089.0,0.411694]
[1642672559843,0.00185786,42092.0,42089.0,0.411694]
[1642672560342,0.00185786,42092.0,42089.0,0.69229641]
[1642672560739,0.0011,42092.0,42089.0,0.69229641]
[1642672561039,0.00185786,42092.0,42089.0,0.66429641]
[1642672561639,0.00185786,42092.0,42089.0,0.69049281]
[1642672562043,0.0011,42092.0,42089.0,0.4218304]
[1642672562293,0.00185779,42092.0,42089.0,0.4218304]
[1642672562497,0.00185779,42092.0,42089.0,0.4098904]
[1642672562894,0.00185779,42092.0,42089.0,0.3838904]
[1642672563093,0.05942,42091.0,42089.0,0.0001964]
[1642672563493,0.10942,42091.0,42089.0,0.0001964]
[1642672563694,0.10942,42091.0,42089.0,0.2851964]
[1642672564102,0.06127779,42092.0,42089.0,0.2851964]
[1642672564296,0.05,42091.0,42089.0,0.2851964]
[1642672564896,0.05,42091.0,42089.0,0.2401964]
[1642672565498,0.06127779,42092.0,42089.0,0.2401964]
[1642672565698,0.06052,42092.0,42089.0,0.53351607]
[1642672565898,0.00185781,42092.0,42089.0,0.91721007]
[1642672566148,0.00185781,42092.0,42089.0,0.7278904]
[1642672566350,0.00185781,42092.0,42089.0,0.8278904]
[1642672566746,0.0011,42092.0,42089.0,0.8278904]
[1642672566947,0.00185781,42092.0,42089.0,0.7738904]
[1642672567148,0.00185781,42092.0,42089.0,1.06010908]
[1642672567346,0.00185781,42092.0,42089.0,0.7858304]
[1642672567750,0.00185781,42092.0,42089.0,0.8228304]
[1642672567947,0.0011,42092.0,42089.0,0.8228304]
[1642672568146,0.00185781,42092.0,42089.0,1.13117584]
[1642672568347,0.00185781,42092.0,42089.0,1.17907584]
[1642672568946,0.00185781,42092.0,42089.0,1.14207584]
[1642672569147,0.0011,42092.0,42089.0,1.22539584]
[1642672569449,0.0018578,42092.0,42089.0,1.22539584]
[1642672569648,0.0018578,42092.0,42089.0,1.25139584]
[1642672570294,0.0018578,42092.0,42089.0,1.16807584]
[1642672570492,0.0011,42092.0,42089.0,1.16807584]
[1642672570691,0.0018578,42092.0,42089.0,1.16807584]
[1642672570889,0.0018578,42092.0,42089.0,1.14207584]
[1642672571290,0.0018578,42092.0,42089.0,0.99207584]
[1642672571691,0.0011,42092.0,42089.0,1.02207584]
[1642672571892,0.0018578,42092.0,42089.0,1.02207584]
[1642672572492,0.0018578,42092.0,42089.0,1.07207584]
[1642672572689,0.0018578,42092.0,42089.0,1.17207584]
[1642672572896,0.0011,42092.0,42089.0,1.14207584]
[1642672573091,0.00185781,42092.0,42089.0,1.14207584]
[1642672573739,0.00185781,42092.0,42089.0,1.20407584]
[1642672573939,0.00185781,42092.0,42089.0,0.99423584]
[1642672575048,0.00185781,42092.0,42089.0,0.94417584]
[1642672575238,0.0011,42092.0,42089.0,0.99417584]
[1642672575442,0.00185781,42092.0,42089.0,1.09417584]
[1642672575637,0.00185781,42092.0,42089.0,1.13617584]
[1642672576337,0.0011,42092.0,42089.0,1.13617584]
[1642672576537,0.0018578,42092.0,42089.0,1.13617584]
[1642672577588,0.0011,42092.0,42089.0,1.13617584]
[1642672577788,0.0018578,42092.0,42089.0,1.13617584]
[1642672578793,0.0011,42092.0,42089.0,1.13617584]
[1642672578992,0.0018578,42092.0,42089.0,1.09417584]
[1642672579592,0.0018578,42092.0,42089.0,1.13617584]
[1642672579993,0.0011,42092.0,42089.0,1.13617584]
[1642672580191,0.0018578,42092.0,42089.0,1.13617584]
[1642672581037,0.0018578,42092.0,42089.0,1.04417584]
[1642672581239,0.0011,42092.0,42089.0,1.04417584]
[1642672581439,0.0018578,42092.0,42089.0,1.04417584]
[1642672581638,0.0018578,42092.0,42089.0,1.13617584]
[1642672582340,0.0011,42092.0,42089.0,1.13617584]
[1642672582543,0.0018578,42092.0,42089.0,1.13617584]
[1642672582941,0.0018578,42092.0,42089.0,1.09417584]
[1642672583541,0.0011,42092.0,42089.0,1.09417584]
[1642672583741,0.0018578,42092.0,42089.0,1.13617584]
[1642672584142,0.0018578,42092.0,42089.0,2.40017584]
[1642672584342,0.0018578,42092.0,42089.0,1.13617584]
[1642672584796,0.0011,42092.0,42089.0,1.13617584]
[1642672584997,0.0018578,42092.0,42089.0,1.13617584]
[1642672585599,0.0018578,42092.0,42089.0,1.12717584]
[1642672585805,0.0018578,42092.0,42089.0,2.39117584]
[1642672585999,0.0011,42092.0,42089.0,2.39117584]
[1642672586300,0.0018578,42092.0,42089.0,1.12717584]
[1642672586898,0.0018578,42092.0,42089.0,2.39117584]
[1642672587201,0.0011,42092.0,42089.0,2.39117584]
[1642672587400,0.0018578,42092.0,42089.0,2.39117584]
[1642672587602,0.0018578,42092.0,42089.0,2.35817584]
[1642672587800,0.0018578,42092.0,42089.0,2.39617584]
[1642672588404,0.0011,42092.0,42089.0,2.39617584]
[1642672588639,0.0018578,42092.0,42089.0,2.39617584]
[1642672589039,0.0018578,42092.0,42089.0,2.35817584]
[1642672589640,0.0011,42092.0,42089.0,2.40117584]
[1642672589844,0.0018578,42092.0,42089.0,2.40117584]
[1642672590243,0.02,42099.0,42090.0,1.233694]
[1642672590444,0.02,42099.0,42094.0,0.4443462]
[1642672590642,0.02,42099.0,42098.0,0.383694]
[1642672590843,0.02,42099.0,42098.0,0.433694]
[1642672591145,0.0203438,42099.0,42098.0,0.433694]
[1642672591341,0.0203438,42099.0,42098.0,0.64355313]
[1642672591543,0.0203438,42099.0,42098.0,0.74355313]
[1642672591740,0.0203438,42099.0,42098.0,0.79155313]
[1642672592591,0.0203438,42099.0,42098.0,1.08408678]
[1642672592991,0.0203438,42099.0,42098.0,1.03608678]